fUST/lending_fUST_20250623
["ID","MTS","AMOUNT","RATE_DAILY","PERIOD"]
[367152856,1750675840749,-460.0,0.00021917,2]
[367152857,1750675840759,-460.0,0.00021917,2]
[367152858,1750675840768,-151.0,0.00021917,2]
[367152859,1750675840778,-460.0,0.00021917,2]
[367152860,1750675840788,-460.0,0.00021917,2]
[367152861,1750675840797,-763.34,0.00021917,2]
[367152862,1750675840807,-769.18,0.00021917,2]
[367152863,1750675840817,-460.0,0.00021917,2]
[367152864,1750675840827,-460.0,0.00021917,2]
[367152865,1750675840836,-460.0,0.00021917,2]
[367152866,1750675840846,-460.0,0.00021917,2]
[367152867,1750675840855,-460.0,0.00021917,2]
[367152868,1750675840865,-151.0,0.00021917,2]
[367152869,1750675840874,-401.16366219,0.00021917,2]
[367152870,1750675840883,-460.0,0.00021917,2]
[367152871,1750675840893,-460.0,0.00021917,2]
[367152872,1750675840902,-460.0,0.00021917,2]
[367152873,1750675840911,-500.0,0.00021917,2]
[367152874,1750675840920,-500.0,0.00021917,2]
[367152875,1750675840930,-460.0,0.00021917,2]
[367152876,1750675840940,-500.0,0.00021917,2]
[367152877,1750675840949,-460.0,0.00021917,2]
[367152878,1750675840959,-151.0,0.00021917,2]
[367152879,1750675840972,-500.0,0.00021917,2]
[367152880,1750675840981,-500.0,0.00021917,2]
[367152881,1750675840990,-1409.27,0.00021917,2]
[367152882,1750675841001,-500.0,0.00021917,2]
[367152883,1750675841011,-500.0,0.00021917,2]
[367152884,1750675841020,-500.0,0.00021917,2]
[367152885,1750675841029,-500.0,0.00021917,2]
[367152886,1750675841038,-643.18,0.00021917,2]
[367152887,1750675841047,-473.11612061,0.00021917,2]
[367152888,1750675841057,-156.02636217,0.00021917,2]
[367152889,1750675841066,-151.0,0.00021917,2]
[367152890,1750675841079,-576.1725386,0.00021917,2]
[367152892,1750675841089,-584.29,0.00021917,2]
[367152893,1750675841098,-460.0,0.00021917,2]
[367152894,1750675841108,-5222.34,0.00021917,2]
[367152895,1750675841117,-460.0,0.00021917,2]
[367152896,1750675841127,-379.35980627,0.00021917,2]
[367152897,1750675841136,-460.0,0.00021917,2]
[367152898,1750675841146,-460.0,0.00021917,2]
[367152899,1750675841155,-460.0,0.00021917,2]
[367152900,1750675841165,-464.39,0.00021917,2]
[367152901,1750675841175,-460.0,0.00021917,2]
[367152902,1750675841184,-460.0,0.00021917,2]
[367152903,1750675841193,-460.0,0.00021917,2]
[367152904,1750675841203,-460.0,0.00021917,2]
[367152905,1750675841212,-460.0,0.00021917,2]
[367152906,1750675841223,-460.0,0.00021917,2]
[367152907,1750675841233,-603.45,0.00021917,2]
[367152908,1750675841242,-460.0,0.00021917,2]
[367152909,1750675841252,-460.0,0.00021917,2]
[367152910,1750675841261,-460.0,0.00021917,2]
[367152911,1750675841271,-541.8,0.00021917,2]
[367152912,1750675841281,-460.0,0.00021917,2]
[367152913,1750675841290,-460.0,0.00021917,2]
[367152914,1750675841299,-460.0,0.00021917,2]
[367152915,1750675841309,-1599.85,0.00021917,2]
[367152916,1750675841318,-460.0,0.00021917,2]
[367152917,1750675841328,-460.0,0.00021917,2]
[367152918,1750675841338,-460.0,0.00021917,2]
[367152919,1750675841348,-460.0,0.00021917,2]
[367152920,1750675841357,-815.42,0.00021917,2]
[367152921,1750675841368,-304.03066694,0.00021917,2]
[367152922,1750675841378,-460.0,0.00021917,2]
[367152923,1750675841389,-460.0,0.00021917,2]
[367152924,1750675841399,-460.0,0.00021917,2]
[367152925,1750675841409,-460.0,0.00021917,2]
[367152926,1750675841418,-460.0,0.00021917,2]
[367152927,1750675841427,-863.64,0.00021917,2]
[367152928,1750675841437,-460.0,0.00021917,2]
[367152929,1750675841447,-460.0,0.00021917,2]
[367152930,1750675841457,-500.0,0.00021917,2]
[367152931,1750675841467,-460.0,0.00021917,2]
[367152932,1750675841477,-500.0,0.00021917,2]
[367152933,1750675841487,-500.0,0.00021917,2]
[367152934,1750675841496,-151.0,0.00021917,2]
[367152936,1750675841506,-500.0,0.00021917,2]
[367152937,1750675841515,-500.0,0.00021917,2]
[367152938,1750675841525,-500.0,0.00021917,2]
[367152939,1750675841534,-293.4976075,0.00021917,2]
[367152940,1750675841544,-1881.42,0.00021917,2]
[367152941,1750675841555,-1019.95,0.00021917,2]
[367152942,1750675841564,-460.0,0.00021917,2]
[367152943,1750675841575,-460.0,0.00021917,2]
[367152944,1750675841584,-949.84,0.00021917,2]
[367152945,1750675841594,-460.0,0.00021917,2]
[367152946,1750675841774,-460.0,0.00021917,2]
[367152947,1750675841785,-460.0,0.00021917,2]
[367152948,1750675841795,-460.0,0.00021917,2]
[367152949,1750675841804,-460.0,0.00021917,2]
[367152950,1750675841814,-460.0,0.00021917,2]
[367152951,1750675841824,-460.0,0.00021917,2]
[367152952,1750675841834,-470.84,0.00021917,2]
[367152953,1750675841843,-460.0,0.00021917,2]
[367152954,1750675841853,-460.0,0.00021917,2]
[367152955,1750675841863,-479.84,0.00021917,2]
[367152956,1750675841872,-460.0,0.00021917,2]
[367152957,1750675841882,-460.0,0.00021917,2]
[367152958,1750675841892,-460.0,0.00021917,2]
[367152959,1750675841902,-460.0,0.00021917,2]
[367152960,1750675841912,-500.0,0.00021917,2]
[367152961,1750675841921,-460.0,0.00021917,2]
[367152962,1750675841930,-460.0,0.00021917,2]
[367152963,1750675841940,-5206.32,0.00021917,2]
[367152964,1750675841950,-460.0,0.00021917,2]
[367152965,1750675841959,-1066.61,0.00021917,2]
[367152966,1750675841968,-460.0,0.00021917,2]
[367152967,1750675841978,-508.19,0.00021917,2]
[367152968,1750675841987,-460.0,0.00021917,2]
[367152969,1750675841996,-597.96,0.00021917,2]
[367152970,1750675842006,-460.0,0.00021917,2]
[367152971,1750675842016,-200.0,0.00021917,10]
[367152972,1750675842025,-200.0,0.00021917,10]
[367152973,1750675842035,-200.0,0.00021917,10]
[367152974,1750675842044,-200.0,0.00021917,10]
[367152975,1750675842054,-200.0,0.00021917,10]
[367152976,1750675842063,-200.0,0.00021917,10]
[367152977,1750675842076,-200.0,0.00021917,10]
[367152978,1750675842087,-200.0,0.00021917,10]
[367152979,1750675842099,-643.45,0.00021917,2]
[367152980,1750675842108,-460.0,0.00021917,2]
[367152981,1750675842119,-200.0,0.00021917,10]
[367152982,1750675842128,-200.0,0.00021917,10]
[367152983,1750675842138,-7175.58,0.00021917,2]
[367152984,1750675842148,-200.0,0.00021917,10]
[367152985,1750675842157,-200.0,0.00021917,10]
[367152986,1750675842168,-460.0,0.00021917,2]
[367152987,1750675842178,-460.0,0.00021917,2]
[367152988,1750675842189,-460.0,0.00021917,2]
[367152989,1750675842199,-460.0,0.00021917,2]
[367152990,1750675842210,-1276.58,0.00021917,2]
[367152991,1750675842221,-475.5,0.00021917,2]
[367152992,1750675842231,-1443.41,0.00021917,2]
[367152993,1750675842241,-436.42168427,0.00021917,2]
[367152994,1750675842251,-460.0,0.00021917,2]
[367152995,1750675842261,-863.6,0.00021917,2]
[367152996,1750675842271,-460.0,0.00021917,2]
[367152997,1750675842281,-460.0,0.00021917,2]
[367152999,1750675842291,-460.0,0.00021917,2]
[367153000,1750675842300,-460.0,0.00021917,2]
[367153002,1750675842309,-685.22,0.00021917,2]
[367153004,1750675842319,-460.0,0.00021917,2]
[367153006,1750675842328,-460.0,0.00021917,2]
[367153008,1750675842338,-650.08,0.00021917,2]
[367153010,1750675842347,-460.0,0.00021917,2]
[367153012,1750675842357,-460.0,0.00021917,2]
[367153014,1750675842366,-460.0,0.00021917,2]
[367153016,1750675842376,-477.72,0.00021917,2]
[367153018,1750675842386,-2918.15,0.00021917,2]
[367153020,1750675842395,-460.0,0.00021917,2]
[367153022,1750675842405,-777.6,0.00021917,2]
[367153024,1750675842414,-460.0,0.00021917,2]
[367153026,1750675842424,-958.0,0.00021917,2]
[367153028,1750675842434,-460.0,0.00021917,2]
[367153030,1750675842444,-460.0,0.00021917,2]
[367153032,1750675842454,-460.0,0.00021917,2]
[367153034,1750675842464,-923.24,0.00021917,2]
[367153036,1750675842474,-460.0,0.00021917,2]
[367153038,1750675842484,-460.0,0.00021917,2]
[367153041,1750675842494,-1751.51,0.00021917,2]
[367153043,1750675842505,-1751.51,0.00021917,2]
[367153045,1750675842515,-1751.51,0.00021917,2]
[367153046,1750675842524,-1751.51,0.00021917,2]
[367153048,1750675842534,-688.72,0.00021917,2]
[367153049,1750675842544,-704.48,0.00021917,2]
[367153050,1750675842554,-1751.51,0.00021917,2]
[367153051,1750675842563,-460.0,0.00021917,2]
[367153052,1750675842573,-1751.51,0.00021917,2]
[367153053,1750675842583,-1751.51,0.00021917,2]
[367153055,1750675842593,-1751.51,0.00021917,2]
[367153056,1750675842602,-1751.51,0.00021917,2]
[367153058,1750675842611,-1751.51,0.00021917,2]
[367153060,1750675842621,-460.0,0.00021917,2]
[367153062,1750675842630,-1751.51,0.00021917,2]
[367153063,1750675842639,-1751.51,0.00021917,2]
[367153064,1750675842649,-1751.51,0.00021917,2]
[367153065,1750675842659,-460.0,0.00021917,2]
[367153066,1750675842669,-1751.51,0.00021917,2]
[367153067,1750675842679,-1751.51,0.00021917,2]
[367153068,1750675842688,-1751.51,0.00021917,2]
[367153069,1750675842698,-1751.51,0.00021917,2]
[367153070,1750675842707,-1751.51,0.00021917,2]
[367153071,1750675842717,-1751.51,0.00021917,2]
[367153072,1750675842727,-460.0,0.00021917,2]
[367153073,1750675842737,-460.0,0.00021917,2]
[367153074,1750675842747,-460.0,0.00021917,2]
[367153075,1750675842756,-460.0,0.00021917,2]
[367153076,1750675842765,-1875.98,0.00021917,2]
[367153077,1750675842775,-460.0,0.00021917,2]
[367153078,1750675842784,-460.0,0.00021917,2]
[367153079,1750675842794,-460.0,0.00021917,2]
[367153080,1750675842803,-460.0,0.00021917,2]
[367153081,1750675842813,-460.0,0.00021917,2]
[367153082,1750675842822,-460.0,0.00021917,2]
[367153083,1750675842832,-460.0,0.00021917,2]
[367153084,1750675842841,-460.0,0.00021917,2]
[367153085,1750675842852,-460.0,0.00021917,2]
[367153086,1750675842862,-460.0,0.00021917,2]
[367153087,1750675842871,-460.0,0.00021917,2]
[367153088,1750675842882,-2039.75,0.00021917,2]
[367153089,1750675842892,-2602.97,0.00021917,2]
[367153090,1750675842902,-2196.62,0.00021917,2]
[367153091,1750675842912,-460.0,0.00021917,2]
[367153092,1750675842922,-5133.04,0.00021917,2]
[367153093,1750675842933,-460.0,0.00021917,2]
[367153094,1750675842943,-460.0,0.00021917,2]
[367153095,1750675842953,-460.0,0.00021917,2]
[367153096,1750675842963,-708.09,0.00021917,2]
[367153097,1750675842975,-4377.81,0.00021917,2]
[367153098,1750675842985,-460.0,0.00021917,2]
[367153099,1750675842994,-460.0,0.00021917,2]
[367153100,1750675843006,-460.0,0.00021917,2]
[367153101,1750675843015,-460.0,0.00021917,2]
[367153102,1750675843024,-6382.91,0.00021917,2]
[367153103,1750675843034,-460.0,0.00021917,2]
[367153104,1750675843044,-460.0,0.00021917,2]
[367153105,1750675843054,-506.94,0.00021917,2]
[367153106,1750675843063,-151.0,0.00021917,2]
[367153107,1750675843076,-793.54,0.00021917,2]
[367153108,1750675843085,-460.0,0.00021917,2]
[367153109,1750675843094,-460.0,0.00021917,2]
[367153110,1750675843103,-1693.1,0.00021917,2]
[367153112,1750675843113,-460.0,0.00021917,2]
[367153114,1750675843123,-151.0,0.00021917,2]
[367153115,1750675843134,-463.43,0.00021917,2]
[367153116,1750675843143,-1388.57,0.00021917,2]
[367153117,1750675843152,-460.0,0.00021917,2]
[367153118,1750675843162,-460.0,0.00021917,2]
[367153119,1750675843171,-460.0,0.00021917,2]
[367153120,1750675843180,-460.0,0.00021917,2]
[367153121,1750675843190,-1272.06,0.00021917,2]
[367153123,1750675843200,-744.12,0.00021917,2]
[367153124,1750675843209,-460.0,0.00021917,2]
[367153125,1750675843220,-908.53,0.00021917,2]
[367153126,1750675843230,-460.0,0.00021917,2]
[367153127,1750675843239,-1104.79,0.00021917,2]
[367153128,1750675843249,-460.0,0.00021917,2]
[367153129,1750675843258,-742.05,0.00021917,2]
[367153130,1750675843268,-528.94,0.00021917,2]
[367153131,1750675843277,-460.0,0.00021917,2]
[367153132,1750675843287,-821.5,0.00021917,2]
[367153133,1750675843296,-2109.84,0.00021917,2]
[367153134,1750675843306,-460.0,0.00021917,2]
[367153135,1750675843315,-722.89,0.00021917,2]
[367153136,1750675843325,-460.0,0.00021917,2]
[367153137,1750675843334,-460.0,0.00021917,2]
[367153138,1750675843343,-1229.66,0.00021917,2]
[367153139,1750675843353,-460.0,0.00021917,2]
[367153140,1750675843362,-460.0,0.00021917,2]
[367153141,1750675843372,-460.0,0.00021917,2]
[367153142,1750675843381,-460.0,0.00021917,2]
[367153143,1750675843391,-460.0,0.00021917,2]
[367153144,1750675843401,-1081.01,0.00021917,2]
[367153145,1750675843411,-460.0,0.00021917,2]
[367153146,1750675843420,-568.41,0.00021917,2]
[367153147,1750675843429,-460.0,0.00021917,2]
[367153148,1750675843439,-1791.66,0.00021917,2]
[367153149,1750675843448,-2393.58,0.00021917,2]
[367153150,1750675843458,-515.95,0.00021917,2]
[367153151,1750675843468,-500.0,0.00021917,2]
[367153152,1750675843477,-2632.47,0.00021917,2]
[367153153,1750675843487,-5653.2,0.00021917,2]
[367153154,1750675843496,-674.91,0.00021917,2]
[367153155,1750675843505,-3957.2,0.00021917,2]
[367153156,1750675843514,-505.88,0.00021917,2]
[367153157,1750675843523,-966.48,0.00021917,2]
[367153158,1750675843532,-151.0,0.00021917,2]
[367153159,1750675843541,-460.0,0.00021917,2]
[367153160,1750675843550,-693.66,0.00021917,2]
[367153161,1750675843560,-151.0,0.00021917,2]
[367153162,1750675843569,-460.0,0.00021917,2]
[367153163,1750675843578,-460.0,0.00021917,2]
[367153164,1750675843587,-460.0,0.00021917,2]
[367153165,1750675843596,-706.78,0.00021917,2]
[367153166,1750675843605,-897.04,0.00021917,2]
[367153167,1750675843615,-631.99,0.00021917,2]
[367153168,1750675843624,-151.0,0.00021917,2]
[367153169,1750675843633,-274.91846312,0.00021917,2]
[367153170,1750675843642,-460.0,0.00021917,2]
[367153171,1750675843651,-595.59,0.00021917,2]
[367153172,1750675843660,-460.0,0.00021917,2]
[367153173,1750675843670,-597.57,0.00021917,2]
[367153174,1750675843679,-460.0,0.00021917,2]
[367153175,1750675843688,-460.0,0.00021917,2]
[367153176,1750675843697,-460.0,0.00021917,2]
[367153177,1750675843706,-460.0,0.00021917,2]
[367153178,1750675843715,-3953.95,0.00021917,2]
[367153179,1750675843725,-1477.34,0.00021917,2]
[367153180,1750675843734,-460.0,0.00021917,2]
[367153181,1750675843744,-548.81,0.00021917,2]
[367153182,1750675843754,-460.0,0.00021917,2]
[367153183,1750675843764,-1005.68,0.00021917,2]
[367153184,1750675843773,-460.0,0.00021917,2]
[367153185,1750675843782,-1773.3,0.00021917,2]
[367153186,1750675843792,-460.0,0.00021917,2]
[367153187,1750675843801,-487.08,0.00021917,2]
[367153188,1750675843810,-16119.67,0.00021917,2]
[367153189,1750675843819,-460.0,0.00021917,2]
[367153190,1750675843828,-460.0,0.00021917,2]
[367153191,1750675843838,-460.0,0.00021917,2]
[367153192,1750675843847,-500.0,0.00021917,2]
[367153193,1750675843856,-460.0,0.00021917,2]
[367153194,1750675843865,-500.0,0.00021917,2]
[367153195,1750675843875,-500.0,0.00021917,2]
[367153196,1750675843884,-500.0,0.00021917,2]
[367153197,1750675843893,-607.68507989,0.00021917,2]
[367153198,1750675843902,-1390.72,0.00021917,2]
[367153199,1750675843912,-2118.35,0.00021917,2]
[367153200,1750675843921,-460.0,0.00021917,2]
[367153201,1750675843931,-460.0,0.00021917,2]
[367153202,1750675843940,-5449.11,0.00021917,2]
[367153203,1750675843950,-2167.43,0.00021917,2]
[367153204,1750675843959,-460.0,0.00021917,2]
[367153205,1750675843969,-460.0,0.00021917,2]
[367153206,1750675843978,-5597.06,0.00021917,2]
[367153207,1750675843987,-480.34,0.00021917,2]
[367153208,1750675843996,-498.15,0.00021917,2]
[367153209,1750675844007,-705.44,0.00021917,2]
[367153210,1750675844016,-460.0,0.00021917,2]
[367153211,1750675844025,-460.0,0.00021917,2]
[367153212,1750675844034,-460.0,0.00021917,2]
[367153213,1750675844043,-1234.2,0.00021917,2]
[367153214,1750675844052,-460.0,0.00021917,2]
[367153215,1750675844062,-460.0,0.00021917,2]
[367153216,1750675844072,-460.0,0.00021917,2]
[367153217,1750675844083,-460.0,0.00021917,2]
[367153218,1750675844092,-460.0,0.00021917,2]
[367153219,1750675844101,-460.0,0.00021917,2]
[367153220,1750675844110,-460.0,0.00021917,2]
[367153221,1750675844168,-460.0,0.00021917,2]
[367153222,1750675844177,-460.0,0.00021917,2]
[367153223,1750675844186,-837.71,0.00021917,2]
[367153224,1750675844197,-500.0,0.00021917,2]
[367153225,1750675844207,-7305.66,0.00021917,2]
[367153226,1750675844216,-1491.15,0.00021917,2]
[367153227,1750675844226,-535.91,0.00021917,2]
[367153228,1750675844236,-460.0,0.00021917,2]
[367153229,1750675844246,-932.67,0.00021917,2]
[367153230,1750675844255,-652.89,0.00021917,2]
[367153231,1750675844266,-460.0,0.00021917,2]
[367153232,1750675844276,-844.9,0.00021917,2]
[367153233,1750675844286,-438.72843198,0.00021917,2]
[367153234,1750675844296,-460.0,0.00021917,2]
[367153235,1750675844307,-559.18,0.00021917,2]
[367153236,1750675844316,-500.0,0.00021917,2]
[367153237,1750675844325,-500.0,0.00021917,2]
[367153238,1750675844334,-500.0,0.00021917,2]
[367153239,1750675844343,-500.0,0.00021917,2]
[367153240,1750675844353,-500.0,0.00021917,2]
[367153241,1750675844362,-500.0,0.00021917,2]
[367153242,1750675844372,-500.0,0.00021917,2]
[367153243,1750675844382,-151.0,0.00021917,2]
[367153244,1750675844392,-500.0,0.00021917,2]
[367153245,1750675844401,-460.0,0.00021917,2]
[367153246,1750675844411,-500.0,0.00021917,2]
[367153247,1750675844420,-500.0,0.00021917,2]
[367153248,1750675844431,-500.0,0.00021917,2]
[367153249,1750675844441,-500.0,0.00021917,2]
[367153250,1750675844450,-500.0,0.00021917,2]
[367153251,1750675844461,-460.0,0.00021917,2]
[367153252,1750675844471,-390.27924809,0.00021917,2]
[367153253,1750675844480,-460.0,0.00021917,2]
[367153254,1750675844490,-460.0,0.00021917,2]
[367153255,1750675844499,-537.29,0.00021917,2]
[367153256,1750675844508,-460.0,0.00021917,2]
[367153257,1750675844518,-460.0,0.00021917,2]
[367153258,1750675844527,-4634.43,0.00021917,2]
[367153259,1750675844536,-460.0,0.00021917,2]
[367153260,1750675844546,-1612.51,0.00021917,2]
[367153261,1750675844555,-640.67,0.00021917,2]
[367153262,1750675844564,-460.0,0.00021917,2]
[367153263,1750675844573,-460.0,0.00021917,2]
[367153264,1750675844583,-460.0,0.00021917,2]
[367153265,1750675844592,-460.0,0.00021917,2]
[367153266,1750675844601,-460.0,0.00021917,2]
[367153267,1750675844611,-917.83,0.00021917,2]
[367153268,1750675844621,-460.0,0.00021917,2]
[367153269,1750675844630,-673.74,0.00021917,2]
[367153270,1750675844639,-1179.68,0.00021917,2]
[367153271,1750675844649,-460.0,0.00021917,2]
[367153272,1750675844658,-460.0,0.00021917,2]
[367153273,1750675844668,-500.0,0.00021917,2]
[367153274,1750675844677,-460.0,0.00021917,2]
[367153275,1750675844686,-1322.3,0.00021917,2]
[367153276,1750675844695,-460.0,0.00021917,2]
[367153277,1750675844704,-460.0,0.00021917,2]
[367153278,1750675844713,-3976.99,0.00021917,2]
[367153279,1750675844723,-460.0,0.00021917,2]
[367153280,1750675844732,-460.0,0.00021917,2]
[367153281,1750675844742,-460.0,0.00021917,2]
[367153282,1750675844751,-153.0,0.00021918,2]
[367153283,1750675844760,-153.0,0.00021918,2]
[367153284,1750675844769,-153.0,0.00021918,2]
[367153285,1750675844778,-153.0,0.00021918,2]
[367153286,1750675844787,-153.0,0.00021918,2]
[367153287,1750675844797,-153.0,0.00021918,2]
[367153288,1750675844806,-153.0,0.00021918,2]
[367153289,1750675844815,-153.0,0.00021918,2]
[367153290,1750675844824,-153.0,0.00021918,2]
[367153291,1750675844834,-153.0,0.00021918,2]
[367153292,1750675844843,-153.0,0.00021918,2]
[367153293,1750675844853,-153.0,0.00021918,2]
[367153294,1750675844862,-400.0,0.00021918,7]
[367153295,1750675844873,-150.0,0.00021918,2]
[367153296,1750675844883,-559.0,0.0002192,2]
[367153297,1750675844894,-849.88817642,0.0002194,2]
[367153298,1750675844903,-559.0,0.00021958,2]
[367153299,1750675844914,-3178.57,0.00022,7]
[367153300,1750675844924,-2000.0,0.00022,14]
[367153301,1750675844933,-2000.0,0.00022,14]
[367153302,1750675844943,-2000.0,0.00022,14]
[367153303,1750675844953,-2000.0,0.00022,14]
[367153304,1750675844962,-1356.0,0.00022,14]
[367153305,1750675844973,-167.0,0.00022,2]
[367153306,1750675844983,-485.0,0.00022,2]
[367153307,1750675844992,-288.5477242,0.00022031,2]
[367153308,1750675845002,-559.0,0.0002205,2]
[367153309,1750675845011,-559.0,0.00022069,2]
[367153310,1750675845021,-160.0,0.00022089,2]
[367153311,1750675845030,-846.53928378,0.00022097,2]
[367153312,1750675845040,-160.0,0.00022097,2]
[367153313,1750675845049,-836.70095952,0.00022097,2]
[367153314,1750675845059,-160.0,0.00022097,2]
[367153315,1750675845068,-230.18214666,0.00022097,2]
[367153316,1750675845081,-425.08510397,0.00022097,2]
[367153317,1750675845091,-213.63163053,0.00022097,2]
[367153318,1750675845101,-160.0,0.00022097,2]
[367153319,1750675845110,-1751.51,0.00022101,2]
[367153320,1750675845121,-1751.51,0.00022101,2]
[367153321,1750675845130,-1751.51,0.00022101,2]
[367153322,1750675845139,-1751.51,0.00022101,2]
[367153323,1750675845150,-1751.69681203,0.00022101,2]
[367153324,1750675845159,-12553.69357174,0.00022102,2]
[367153325,1750675845169,-559.0,0.00022106,2]
[367153326,1750675845178,-151.729213,0.00022106,7]
[367153327,1750675845187,-559.0,0.00022114,2]
[367153328,1750675845197,-559.0,0.00022153,2]
[367153329,1750675845206,-420.0,0.00022156,2]
[367153330,1750675845216,-559.0,0.0002217,2]
[367153331,1750675845227,-500.0,0.00022173,2]
[367153332,1750675845236,-500.0,0.00022173,2]
[367153333,1750675845246,-500.0,0.00022173,2]
[367153334,1750675845256,-500.0,0.00022173,2]
[367153335,1750675845265,-500.0,0.00022173,2]
[367153336,1750675845275,-607.53197589,0.00022173,2]
[367153337,1750675845284,-500.0,0.00022173,2]
[367153338,1750675845293,-448.09316403,0.00022173,2]
[367153340,1750675845302,-500.0,0.00022173,2]
[367153341,1750675845315,-500.0,0.00022173,2]
[367153342,1750675845325,-550.35644472,0.00022173,2]
[367153343,1750675845335,-503.79810707,0.00022173,2]
[367153344,1750675845345,-500.0,0.00022173,2]
[367153346,1750675845355,-500.0,0.00022173,2]
[367153348,1750675845365,-500.0,0.00022173,2]
[367153350,1750675845375,-242.522726,0.0002219,7]
[367153352,1750675845384,-284.779636,0.0002219,7]
[367153354,1750675845394,-151.0,0.0002219,7]
[367153356,1750675845403,-299.478218,0.0002219,7]
[367153357,1750675845413,-151.0,0.0002219,7]
[367153359,1750675845422,-151.0,0.0002219,7]
[367153361,1750675845432,-17090.45203824,0.00022191,2]
[367153363,1750675845442,-26225.87430376,0.00022191,2]
[367153365,1750675845451,-460.0,0.00022191,2]
[367153366,1750675845461,-636.33,0.00022191,2]
[367153368,1750675845470,-636.33,0.00022191,2]
[367153370,1750675845480,-460.0,0.00022191,2]
[367153372,1750675845489,-522.8,0.00022191,2]
[367153374,1750675845500,-460.0,0.00022191,2]
[367153375,1750675845510,-460.0,0.00022191,2]
[367153376,1750675845519,-151.0,0.00022191,7]
[367153377,1750675845528,-236.869798,0.00022191,7]
[367153378,1750675845540,-315.34264663,0.00022191,2]
[367153379,1750675845550,-460.0,0.00022191,2]
[367153380,1750675845560,-460.0,0.00022191,2]
[367153381,1750675845569,-1387.98,0.00022191,2]
[367153382,1750675845580,-512.72729054,0.00022191,2]
[367153383,1750675845589,-572.14767029,0.00022191,2]
[367153384,1750675845599,-891.14,0.00022191,2]
[367153385,1750675845610,-431.53933683,0.00022191,2]
[367153386,1750675845622,-460.0,0.00022191,2]
[367153387,1750675845636,-658.88,0.00022191,2]
[367153388,1750675845647,-574.58,0.00022191,2]
[367153389,1750675845659,-376.18050452,0.00022191,2]
[367153390,1750675845669,-460.0,0.00022191,2]
[367153391,1750675845678,-460.0,0.00022191,2]
[367153392,1750675845690,-547.70176323,0.00022191,2]
[367153393,1750675845700,-1197.71,0.00022191,2]
[367153394,1750675845709,-460.0,0.00022191,2]
[367153395,1750675845718,-151.0,0.00022191,7]
[367153396,1750675845727,-460.0,0.00022191,2]
[367153397,1750675845738,-230.02417676,0.00022191,2]
[367153398,1750675845748,-735.33,0.00022191,2]
[367153399,1750675845758,-460.0,0.00022191,2]
[367153400,1750675845768,-460.0,0.00022191,2]
[367153401,1750675845780,-151.0,0.00022191,7]
[367153402,1750675845789,-151.0,0.00022191,7]
[367153403,1750675845799,-460.0,0.00022191,2]
[367153404,1750675845808,-460.0,0.00022191,2]